[Event "2026 European Womens Championship"]
[Site "Batumi, GE"]
[Date "2026.06.03"]
[Round "9"]
[White "Buksa, Nataliya"]
[Black "Jarocka, Liwia"]
[Result "1/2-1/2"]
[Board "12"]
[TimeControl "5400+30"]
[WhiteFideId "14123622"]
[BlackFideId "21807558"]
[WhiteElo "2392"]
[BlackElo "2288"]
[WhiteTitle "IM"]
[BlackTitle "FM"]
[WhiteClock "0:14:19"]
[BlackClock "0:29:15"]
[Variant "Standard"]

1. e4 {[%clk 1:30:59]}  c6 {[%clk 1:30:36]} 2. d4 {[%clk 1:31:22]}  d5 {[%clk 1:30:58]} 3. Nc3 {[%clk 1:31:47]}  dxe4 {[%clk 1:31:19]}
4. Nxe4 {[%clk 1:32:14]}  Nf6 {[%clk 1:31:41]} 5. Nxf6+ {[%clk 1:32:40]}  exf6 {[%clk 1:32:06]} 6. c3 {[%clk 1:33:07]}  Bd6 {[%clk 1:32:05]}
7. Bd3 {[%clk 1:33:33]}  O-O {[%clk 1:32:27]} 8. Ne2 {[%clk 1:34:00]}  g6 {[%clk 1:30:06]} 9. O-O {[%clk 1:20:26]}  Re8 {[%clk 1:27:50]}
10. Ng3 {[%clk 1:19:07]}  Nd7 {[%clk 1:20:32]} 11. Bh6 {[%clk 1:18:26]}  Nf8 {[%clk 1:18:07]} 12. Ne4 {[%clk 1:17:55]}  Be7 {[%clk 1:18:00]}
13. Qd2 {[%clk 1:08:14]}  Ne6 {[%clk 1:15:22]} 14. a4 {[%clk 1:05:46]}  f5 {[%clk 1:06:53]} 15. Ng3 {[%clk 1:06:00]}  c5 {[%clk 0:52:54]}
16. Bb5 {[%clk 1:02:56]}  Bd7 {[%clk 0:53:17]} 17. d5 {[%clk 1:02:33]}  Nc7 {[%clk 0:51:50]} 18. Bxd7 {[%clk 0:56:56]}  Qxd7 {[%clk 0:52:18]}
19. c4 {[%clk 0:57:10]}  Bf6 {[%clk 0:52:09]} 20. Bg5 {[%clk 0:54:20]}  Bg7 {[%clk 0:51:26]} 21. h4 {[%clk 0:52:15]}  h5 {[%clk 0:50:35]}
22. Ra3 {[%clk 0:44:24]}  Be5 {[%clk 0:40:57]} 23. Kh1 {[%clk 0:26:54]}  Qd6 {[%clk 0:37:18]} 24. Ne2 {[%clk 0:22:03]}  Bf6 {[%clk 0:31:23]}
25. Ng3 {[%clk 0:21:25]}  Bxg5 {[%clk 0:20:11]} 26. Qxg5 {[%clk 0:21:39]}  f4 {[%clk 0:20:08]} 27. Nxh5 {[%clk 0:21:29]}  Re5 {[%clk 0:17:40]}
28. Nf6+ {[%clk 0:18:30]}  Kg7 {[%clk 0:17:57]} 29. Nh5+ {[%clk 0:18:55]}  Kg8 {[%clk 0:18:26]} 30. Qf6 {[%clk 0:08:41]}  Ne8 {[%clk 0:18:23]}
31. Qxd6 {[%clk 0:09:03]}  Nxd6 {[%clk 0:18:52]} 32. Nxf4 {[%clk 0:08:24]}  Nxc4 {[%clk 0:16:58]} 33. Rc3 {[%clk 0:08:31]}  Nxb2 {[%clk 0:02:34]}
34. Rxc5 {[%clk 0:08:58]}  Nxa4 {[%clk 0:02:56]} 35. Rc7 {[%clk 0:09:21]}  Re4 {[%clk 0:03:04]} 36. g3 {[%clk 0:09:14]}  Rd4 {[%clk 0:03:00]}
37. Rxb7 {[%clk 0:08:22]}  Nc5 {[%clk 0:02:22]} 38. Rb5 {[%clk 0:03:38]}  Nd3 {[%clk 0:02:45]} 39. Ne2 {[%clk 0:03:36]}  Re4 {[%clk 0:03:04]}
40. Nc1 {[%clk 0:00:40]}  a6 {[%clk 0:01:52]} 41. Rb1 {[%clk 0:16:00]}  Rd4 {[%clk 0:27:42]} 42. Nxd3 {[%clk 0:14:30]}  Rxd3 {[%clk 0:28:11]}
43. Rfd1 {[%clk 0:12:24]}  Rxd1+ {[%clk 0:28:36]} 44. Rxd1 {[%clk 0:12:52]}  Kf8 {[%clk 0:28:13]} 45. d6 {[%clk 0:10:59]}  a5 {[%clk 0:26:47]}
46. g4 {[%clk 0:08:47]}  a4 {[%clk 0:25:46]} 47. h5 {[%clk 0:09:00]}  gxh5 {[%clk 0:25:57]} 48. gxh5 {[%clk 0:09:27]}  a3 {[%clk 0:25:39]}
49. h6 {[%clk 0:09:25]}  Kg8 {[%clk 0:24:38]} 50. d7 {[%clk 0:08:38]}  Rd8 {[%clk 0:25:05]} 51. Ra1 {[%clk 0:08:56]}  Rxd7 {[%clk 0:25:30]}
52. Rxa3 {[%clk 0:09:23]}  Kh7 {[%clk 0:25:46]} 53. Ra6 {[%clk 0:09:48]}  Rd5 {[%clk 0:26:01]} 54. Rf6 {[%clk 0:09:48]}  Rh5+ {[%clk 0:25:47]}
55. Kg2 {[%clk 0:10:15]}  Rxh6 {[%clk 0:25:41]} 56. Rxf7+ {[%clk 0:10:41]}  Kg6 {[%clk 0:25:58]} 57. Ra7 {[%clk 0:11:07]}  Rh5 {[%clk 0:26:20]}
58. Ra6+ {[%clk 0:11:29]}  Kg7 {[%clk 0:26:46]} 59. Kg3 {[%clk 0:11:57]}  Rb5 {[%clk 0:27:06]} 60. f4 {[%clk 0:12:26]}  Rc5 {[%clk 0:27:29]}
61. Kg4 {[%clk 0:12:53]}  Rb5 {[%clk 0:27:44]} 62. Rd6 {[%clk 0:12:59]}  Kf7 {[%clk 0:28:03]} 63. Rd4 {[%clk 0:12:49]}  Ra5 {[%clk 0:28:23]}
64. f5 {[%clk 0:13:14]}  Ra1 {[%clk 0:28:36]} 65. Re4 {[%clk 0:13:38]}  Kf6 {[%clk 0:28:24]} 66. Re6+ {[%clk 0:14:05]}  Kf7 {[%clk 0:28:51]}
67. Rb6 {[%clk 0:14:19]}  Rg1+ {[%clk 0:29:15]} 1/2-1/2

[Event "2026 European Womens Championship"]
[Site "Batumi, GE"]
[Date "2026.06.03"]
[Round "9"]
[White "Efroimski, Marsel"]
[Black "Pogorelskikh, Sofia"]
[Result "1-0"]
[Board "13"]
[TimeControl "5400+30"]
[WhiteFideId "2810964"]
[BlackFideId "44164548"]
[WhiteElo "2386"]
[BlackElo "2284"]
[WhiteTitle "IM"]
[BlackTitle "WGM"]
[WhiteClock "0:16:18"]
[BlackClock "0:20:59"]
[Variant "Standard"]

1. e4 {[%clk 1:27:46]}  c5 {[%clk 1:30:46]} 2. Nf3 {[%clk 1:28:13]}  e6 {[%clk 1:31:01]} 3. b3 {[%clk 1:28:39]}  a6 {[%clk 1:30:41]}
4. Bb2 {[%clk 1:29:00]}  d5 {[%clk 1:30:27]} 5. exd5 {[%clk 1:28:09]}  exd5 {[%clk 1:30:33]} 6. d4 {[%clk 1:28:24]}  Nf6 {[%clk 1:29:09]}
7. Nc3 {[%clk 1:11:27]}  Nc6 {[%clk 1:26:29]} 8. Qe2+ {[%clk 1:10:08]}  Be7 {[%clk 1:20:27]} 9. dxc5 {[%clk 1:06:42]}  O-O {[%clk 1:19:37]}
10. O-O-O {[%clk 1:06:53]}  Bxc5 {[%clk 1:15:26]} 11. h3 {[%clk 0:46:11]}  Re8 {[%clk 1:08:18]} 12. Nxd5 {[%clk 0:44:37]}  Nxd5 {[%clk 1:03:42]}
13. Rxd5 {[%clk 0:44:36]}  Rxe2 {[%clk 1:00:54]} 14. Rxd8+ {[%clk 0:45:01]}  Nxd8 {[%clk 1:01:15]} 15. Bxe2 {[%clk 0:45:28]}  Bxf2 {[%clk 1:00:58]}
16. Nd4 {[%clk 0:33:18]}  Bxd4 {[%clk 0:49:47]} 17. Bxd4 {[%clk 0:33:47]}  Nc6 {[%clk 0:49:38]} 18. Bb6 {[%clk 0:30:25]}  Bf5 {[%clk 0:47:57]}
19. g4 {[%clk 0:24:13]}  Be4 {[%clk 0:44:41]} 20. Re1 {[%clk 0:23:08]}  Bg2 {[%clk 0:41:57]} 21. Rg1 {[%clk 0:12:05]}  Be4 {[%clk 0:38:25]}
22. Rg3 {[%clk 0:09:36]}  Nb4 {[%clk 0:35:53]} 23. c3 {[%clk 0:05:13]}  Nd5 {[%clk 0:34:11]} 24. Bd4 {[%clk 0:05:29]}  Nf4 {[%clk 0:33:11]}
25. Bf1 {[%clk 0:04:57]}  g5 {[%clk 0:27:46]} 26. Re3 {[%clk 0:02:59]}  Re8 {[%clk 0:27:27]} 27. c4 {[%clk 0:02:51]}  Re6 {[%clk 0:24:02]}
28. Kd2 {[%clk 0:01:08]}  h6 {[%clk 0:19:17]} 29. a4 {[%clk 0:00:53]}  Kh7 {[%clk 0:18:16]} 30. Kc3 {[%clk 0:00:40]}  Kg6 {[%clk 0:17:46]}
31. b4 {[%clk 0:00:37]}  f5 {[%clk 0:17:00]} 32. b5 {[%clk 0:00:37]}  a5 {[%clk 0:11:04]} 33. Kd2 {[%clk 0:00:34]}  Rd6 {[%clk 0:09:12]}
34. Kc3 {[%clk 0:01:00]}  Ne6 {[%clk 0:09:17]} 35. Be5 {[%clk 0:01:02]}  Rd1 {[%clk 0:09:11]} 36. Bd3 {[%clk 0:01:02]}  Nc5 {[%clk 0:05:17]}
37. Bxe4 {[%clk 0:01:17]}  fxe4 {[%clk 0:04:46]} 38. Kc2 {[%clk 0:00:55]}  Rd7 {[%clk 0:04:29]} 39. Re2 {[%clk 0:00:39]}  Rd3 {[%clk 0:02:23]}
40. Rxe4 {[%clk 0:00:42]}  Ra3 {[%clk 0:01:12]} 41. Rd4 {[%clk 0:28:26]}  Rxa4 {[%clk 0:30:16]} 42. Bd6 {[%clk 0:25:38]}  b6 {[%clk 0:23:00]}
43. Bxc5 {[%clk 0:24:58]}  bxc5 {[%clk 0:23:22]} 44. Rd6+ {[%clk 0:25:24]}  Kg7 {[%clk 0:23:36]} 45. Kd3 {[%clk 0:22:35]}  Ra1 {[%clk 0:18:58]}
46. Ke4 {[%clk 0:15:46]}  Re1+ {[%clk 0:18:29]} 47. Kd5 {[%clk 0:15:34]}  Rd1+ {[%clk 0:18:45]} 48. Kxc5 {[%clk 0:16:01]}  Rxd6 {[%clk 0:19:08]}
49. Kxd6 {[%clk 0:16:30]}  a4 {[%clk 0:19:29]} 50. b6 {[%clk 0:16:55]}  a3 {[%clk 0:19:53]} 51. b7 {[%clk 0:17:23]}  a2 {[%clk 0:20:15]}
52. b8=Q {[%clk 0:17:49]}  a1=Q {[%clk 0:20:36]} 53. Qb7+ {[%clk 0:18:01]}  Kg8 {[%clk 0:19:17]} 54. Qd5+ {[%clk 0:18:18]}  Kf8 {[%clk 0:19:10]}
55. Qf5+ {[%clk 0:18:41]}  Kg8 {[%clk 0:19:23]} 56. Qg6+ {[%clk 0:16:22]}  Kf8 {[%clk 0:19:45]} 57. Qxh6+ {[%clk 0:16:49]}  Ke8 {[%clk 0:19:57]}
58. Qe6+ {[%clk 0:16:53]}  Kf8 {[%clk 0:20:20]} 59. Qf5+ {[%clk 0:17:10]}  Kg8 {[%clk 0:20:40]} 60. Qxg5+ {[%clk 0:17:36]}  Kh7 {[%clk 0:20:51]}
61. Qf5+ {[%clk 0:17:33]}  Kg8 {[%clk 0:20:59]} 62. c5 {[%clk 0:16:18]} 1-0

[Event "2026 European Womens Championship"]
[Site "Batumi, GE"]
[Date "2026.06.03"]
[Round "9"]
[White "Klek, Hanna Marie"]
[Black "Safarli, Josefine"]
[Result "1/2-1/2"]
[Board "14"]
[TimeControl "5400+30"]
[WhiteFideId "24670057"]
[BlackFideId "12900460"]
[WhiteElo "2369"]
[BlackElo "2253"]
[WhiteTitle "WGM"]
[BlackTitle "WGM"]
[WhiteClock "0:09:08"]
[BlackClock "0:39:29"]
[Variant "Standard"]

1. e4 {[%clk 1:30:58]}  e5 {[%clk 1:30:55]} 2. Nf3 {[%clk 1:31:23]}  Nc6 {[%clk 1:31:22]} 3. Bc4 {[%clk 1:31:47]}  Nf6 {[%clk 1:31:46]}
4. d3 {[%clk 1:32:12]}  Bc5 {[%clk 1:32:10]} 5. c3 {[%clk 1:32:26]}  d6 {[%clk 1:32:34]} 6. O-O {[%clk 1:32:41]}  a5 {[%clk 1:32:48]}
7. Re1 {[%clk 1:32:54]}  h6 {[%clk 1:32:56]} 8. Bb5 {[%clk 1:27:34]}  O-O {[%clk 1:29:45]} 9. h3 {[%clk 1:27:38]}  Bd7 {[%clk 1:26:53]}
10. a4 {[%clk 1:27:01]}  Ba7 {[%clk 1:24:03]} 11. Na3 {[%clk 1:24:10]}  Re8 {[%clk 1:16:59]} 12. Nc4 {[%clk 1:20:49]}  Bc5 {[%clk 1:13:37]}
13. Be3 {[%clk 0:59:27]}  Bxe3 {[%clk 1:12:55]} 14. Nxe3 {[%clk 0:59:16]}  g6 {[%clk 1:05:42]} 15. Qc2 {[%clk 0:45:44]}  Na7 {[%clk 0:59:34]}
16. Bc4 {[%clk 0:41:36]}  Be6 {[%clk 0:57:32]} 17. Qb3 {[%clk 0:37:22]}  Bxc4 {[%clk 0:57:47]} 18. Nxc4 {[%clk 0:37:34]}  b6 {[%clk 0:57:48]}
19. Rad1 {[%clk 0:35:33]}  Nc6 {[%clk 0:55:22]} 20. Ne3 {[%clk 0:31:35]}  Qd7 {[%clk 0:51:10]} 21. Nd2 {[%clk 0:31:18]}  Rad8 {[%clk 0:49:25]}
22. Nd5 {[%clk 0:29:46]}  Nxd5 {[%clk 0:48:11]} 23. exd5 {[%clk 0:30:00]}  Ne7 {[%clk 0:47:58]} 24. Qc4 {[%clk 0:28:57]}  c6 {[%clk 0:43:19]}
25. dxc6 {[%clk 0:28:57]}  Qxc6 {[%clk 0:43:44]} 26. Qxc6 {[%clk 0:25:53]}  Nxc6 {[%clk 0:44:10]} 27. Nc4 {[%clk 0:25:10]}  d5 {[%clk 0:39:46]}
28. Nxb6 {[%clk 0:25:28]}  Re6 {[%clk 0:40:08]} 29. c4 {[%clk 0:23:54]}  Nb4 {[%clk 0:40:32]} 30. Nxd5 {[%clk 0:22:57]}  Nxd5 {[%clk 0:40:56]}
31. cxd5 {[%clk 0:23:21]}  Rxd5 {[%clk 0:41:23]} 32. Kf1 {[%clk 0:14:54]}  Rb6 {[%clk 0:40:56]} 33. Rd2 {[%clk 0:14:36]}  Rb4 {[%clk 0:41:12]}
34. Ra1 {[%clk 0:14:37]}  Rdd4 {[%clk 0:40:39]} 35. Ke2 {[%clk 0:12:53]}  Rxa4 {[%clk 0:40:33]} 36. Rxa4 {[%clk 0:12:46]}  Rxa4 {[%clk 0:40:59]}
37. Rc2 {[%clk 0:12:52]}  Rb4 {[%clk 0:41:16]} 38. Kd2 {[%clk 0:12:24]}  Kg7 {[%clk 0:41:04]} 39. Kc1 {[%clk 0:12:25]}  Rb5 {[%clk 0:40:21]}
40. Rc6 {[%clk 0:12:18]}  h5 {[%clk 0:39:49]} 41. h4 {[%clk 0:09:08]}  Kf8 {[%clk 0:39:29]} 1/2-1/2

[Event "2026 European Womens Championship"]
[Site "Batumi, GE"]
[Date "2026.06.03"]
[Round "9"]
[White "Schneider, Jana"]
[Black "Beydullayeva, Govhar"]
[Result "0-1"]
[Board "15"]
[TimeControl "5400+30"]
[WhiteFideId "12924997"]
[BlackFideId "13413015"]
[WhiteElo "2283"]
[BlackElo "2368"]
[WhiteTitle "WGM"]
[BlackTitle "WGM"]
[WhiteClock "0:01:18"]
[BlackClock "0:04:09"]
[Variant "Standard"]

1. e4 {[%clk 1:30:55]}  c5 {[%clk 1:30:57]} 2. Nf3 {[%clk 1:31:17]}  d6 {[%clk 1:31:22]} 3. Bb5+ {[%clk 1:31:37]}  Bd7 {[%clk 1:31:48]}
4. Bxd7+ {[%clk 1:31:57]}  Nxd7 {[%clk 1:32:15]} 5. O-O {[%clk 1:32:10]}  Ngf6 {[%clk 1:32:42]} 6. d3 {[%clk 1:32:16]}  g6 {[%clk 1:30:35]}
7. Ng5 {[%clk 1:32:05]}  h6 {[%clk 1:29:33]} 8. Nh3 {[%clk 1:32:26]}  Qb6 {[%clk 1:17:59]} 9. a4 {[%clk 1:28:19]}  Bg7 {[%clk 1:17:04]}
10. Nc3 {[%clk 1:27:41]}  Ne5 {[%clk 1:15:31]} 11. f4 {[%clk 1:23:29]}  Nc6 {[%clk 1:13:38]} 12. Kh1 {[%clk 1:22:55]}  e6 {[%clk 1:06:47]}
13. Nb5 {[%clk 1:05:35]}  Qd8 {[%clk 1:02:02]} 14. Be3 {[%clk 0:59:41]}  a6 {[%clk 1:02:21]} 15. Na3 {[%clk 0:59:37]}  Nd7 {[%clk 0:52:59]}
16. Nc4 {[%clk 0:55:38]}  Qe7 {[%clk 0:50:33]} 17. c3 {[%clk 0:55:05]}  O-O {[%clk 0:49:04]} 18. f5 {[%clk 0:41:41]}  d5 {[%clk 0:43:13]}
19. fxe6 {[%clk 0:38:59]}  fxe6 {[%clk 0:43:06]} 20. Na3 {[%clk 0:38:21]}  Rxf1+ {[%clk 0:40:24]} 21. Qxf1 {[%clk 0:37:33]}  Rf8 {[%clk 0:40:50]}
22. Qe2 {[%clk 0:37:40]}  g5 {[%clk 0:37:23]} 23. Rf1 {[%clk 0:32:08]}  d4 {[%clk 0:35:16]} 24. Bd2 {[%clk 0:32:17]}  dxc3 {[%clk 0:34:24]}
25. bxc3 {[%clk 0:32:14]}  Rxf1+ {[%clk 0:33:51]} 26. Qxf1 {[%clk 0:32:41]}  Nb6 {[%clk 0:31:39]} 27. Qd1 {[%clk 0:31:22]}  c4 {[%clk 0:23:02]}
28. Nxc4 {[%clk 0:30:48]}  Nxc4 {[%clk 0:23:29]} 29. dxc4 {[%clk 0:31:10]}  Qd6 {[%clk 0:21:00]} 30. Qe2 {[%clk 0:27:13]}  Ne5 {[%clk 0:21:15]}
31. Be3 {[%clk 0:24:53]}  Qd3 {[%clk 0:21:21]} 32. Qxd3 {[%clk 0:23:16]}  Nxd3 {[%clk 0:21:50]} 33. Nf2 {[%clk 0:13:02]}  Nb2 {[%clk 0:21:47]}
34. Bd4 {[%clk 0:12:57]}  Nxa4 {[%clk 0:10:01]} 35. Nd1 {[%clk 0:13:10]}  e5 {[%clk 0:09:58]} 36. Be3 {[%clk 0:11:37]}  Bf8 {[%clk 0:09:55]}
37. Kg1 {[%clk 0:09:34]}  Bc5 {[%clk 0:08:46]} 38. Kf2 {[%clk 0:10:00]}  Kf7 {[%clk 0:08:31]} 39. g4 {[%clk 0:09:09]}  Ke6 {[%clk 0:04:10]}
40. Ke2 {[%clk 0:08:03]}  Bxe3 {[%clk 0:04:33]} 41. Kxe3 {[%clk 0:27:31]}  Kd6 {[%clk 0:23:35]} 42. Kd2 {[%clk 0:26:59]}  Nc5 {[%clk 0:22:41]}
43. Nf2 {[%clk 0:26:15]}  Kc6 {[%clk 0:21:00]} 44. Kc2 {[%clk 0:22:55]}  b5 {[%clk 0:19:42]} 45. cxb5+ {[%clk 0:17:01]}  Kxb5 {[%clk 0:20:09]}
46. Kb2 {[%clk 0:16:10]}  a5 {[%clk 0:18:17]} 47. Kc2 {[%clk 0:15:21]}  Kc4 {[%clk 0:16:15]} 48. Nd1 {[%clk 0:13:39]}  Nxe4 {[%clk 0:16:40]}
49. Ne3+ {[%clk 0:13:58]}  Kc5 {[%clk 0:17:05]} 50. Nf5 {[%clk 0:11:13]}  Nd6 {[%clk 0:17:01]} 51. Nxh6 {[%clk 0:08:41]}  Kd5 {[%clk 0:17:04]}
52. Kb3 {[%clk 0:06:55]}  e4 {[%clk 0:15:52]} 53. c4+ {[%clk 0:01:02]}  Nxc4 {[%clk 0:16:14]} 54. Nf5 {[%clk 0:01:22]}  e3 {[%clk 0:13:43]}
55. Ng3 {[%clk 0:00:59]}  Nd2+ {[%clk 0:09:53]} 56. Ka4 {[%clk 0:00:56]}  Ne4 {[%clk 0:07:46]} 57. Ne2 {[%clk 0:00:58]}  Nf2 {[%clk 0:06:43]}
58. Kxa5 {[%clk 0:00:57]}  Kc4 {[%clk 0:05:21]} 59. h4 {[%clk 0:00:33]}  gxh4 {[%clk 0:05:48]} 60. g5 {[%clk 0:00:57]}  Ne4 {[%clk 0:04:42]}
61. g6 {[%clk 0:01:14]}  h3 {[%clk 0:03:32]} 62. Ng3 {[%clk 0:00:56]}  Nf6 {[%clk 0:03:31]} 63. Nf1 {[%clk 0:00:32]}  e2 {[%clk 0:03:26]}
64. Nd2+ {[%clk 0:00:54]}  Kd3 {[%clk 0:03:52]} 65. Nf3 {[%clk 0:01:18]}  Ke3 {[%clk 0:04:09]} 0-1

[Event "2026 European Womens Championship"]
[Site "Batumi, GE"]
[Date "2026.06.03"]
[Round "9"]
[White "Mkrtchian, Lilit"]
[Black "Kubicka, Anna"]
[Result "1-0"]
[Board "16"]
[TimeControl "5400+30"]
[WhiteFideId "13300601"]
[BlackFideId "1152254"]
[WhiteElo "2366"]
[BlackElo "2226"]
[WhiteTitle "IM"]
[BlackTitle "WIM"]
[WhiteClock "0:03:49"]
[BlackClock "0:02:00"]
[Variant "Standard"]

1. d4 {[%clk 1:30:47]}  Nf6 {[%clk 1:30:42]} 2. Nf3 {[%clk 1:31:00]}  b6 {[%clk 1:30:33]} 3. e3 {[%clk 1:26:08]}  Bb7 {[%clk 1:30:40]}
4. Bd3 {[%clk 1:26:30]}  e6 {[%clk 1:30:29]} 5. O-O {[%clk 1:26:50]}  d5 {[%clk 1:28:24]} 6. b3 {[%clk 1:27:02]}  Bd6 {[%clk 1:27:29]}
7. Bb2 {[%clk 1:27:25]}  O-O {[%clk 1:27:25]} 8. c4 {[%clk 1:25:02]}  Nbd7 {[%clk 1:22:44]} 9. Nc3 {[%clk 1:25:22]}  dxc4 {[%clk 1:20:58]}
10. bxc4 {[%clk 1:24:15]}  c5 {[%clk 1:10:02]} 11. d5 {[%clk 1:21:41]}  exd5 {[%clk 0:58:06]} 12. Nxd5 {[%clk 1:22:00]}  Bxd5 {[%clk 0:57:05]}
13. cxd5 {[%clk 1:22:22]}  Qe7 {[%clk 0:56:44]} 14. Re1 {[%clk 0:52:07]}  Ne5 {[%clk 0:48:06]} 15. e4 {[%clk 0:40:26]}  Nfg4 {[%clk 0:37:36]}
16. Nxe5 {[%clk 0:37:23]}  Bxe5 {[%clk 0:27:47]} 17. Qxg4 {[%clk 0:32:32]}  Bxb2 {[%clk 0:28:13]} 18. Rad1 {[%clk 0:29:55]}  Bc3 {[%clk 0:22:48]}
19. Re2 {[%clk 0:29:04]}  Qe5 {[%clk 0:14:32]} 20. f4 {[%clk 0:25:38]}  Qd4+ {[%clk 0:14:53]} 21. Kh1 {[%clk 0:25:47]}  g6 {[%clk 0:10:27]}
22. Bc2 {[%clk 0:22:31]}  Qg7 {[%clk 0:10:26]} 23. e5 {[%clk 0:22:31]}  Rad8 {[%clk 0:10:09]} 24. d6 {[%clk 0:18:19]}  Bd4 {[%clk 0:10:14]}
25. Bd3 {[%clk 0:15:56]}  Kh8 {[%clk 0:10:19]} 26. Bc4 {[%clk 0:15:22]}  Rfe8 {[%clk 0:09:24]} 27. Qg3 {[%clk 0:14:26]}  g5 {[%clk 0:07:22]}
28. Rde1 {[%clk 0:09:58]}  gxf4 {[%clk 0:07:27]} 29. Qxf4 {[%clk 0:10:20]}  Bc3 {[%clk 0:07:27]} 30. Bxf7 {[%clk 0:09:24]}  Rf8 {[%clk 0:02:46]}
31. Rf1 {[%clk 0:09:07]}  Bxe5 {[%clk 0:02:33]} 32. Qxe5 {[%clk 0:03:36]}  Rd7 {[%clk 0:02:10]} 33. Qxg7+ {[%clk 0:02:40]}  Kxg7 {[%clk 0:02:39]}
34. Re7 {[%clk 0:03:01]}  Rxe7 {[%clk 0:01:35]} 35. dxe7 {[%clk 0:03:27]}  Rxf7 {[%clk 0:02:00]} 36. Re1 {[%clk 0:03:49]} 1-0

[Event "2026 European Womens Championship"]
[Site "Batumi, GE"]
[Date "2026.06.03"]
[Round "9"]
[White "Bivol, Alina"]
[Black "Radeva, Viktoria"]
[Result "1-0"]
[Board "17"]
[TimeControl "5400+30"]
[WhiteFideId "4100123"]
[BlackFideId "2915405"]
[WhiteElo "2361"]
[BlackElo "2242"]
[WhiteTitle "IM"]
[BlackTitle "WGM"]
[WhiteClock "0:03:51"]
[BlackClock "0:32:52"]
[Variant "Standard"]

1. e4 {[%clk 1:30:58]}  e6 {[%clk 1:30:44]} 2. d4 {[%clk 1:30:41]}  d5 {[%clk 1:29:20]} 3. Nc3 {[%clk 1:31:03]}  Nf6 {[%clk 1:29:45]}
4. Bg5 {[%clk 1:31:18]}  dxe4 {[%clk 1:30:03]} 5. Nxe4 {[%clk 1:31:16]}  Nbd7 {[%clk 1:30:20]} 6. Nf3 {[%clk 1:27:35]}  h6 {[%clk 1:30:28]}
7. Bxf6 {[%clk 1:25:19]}  Nxf6 {[%clk 1:30:49]} 8. Bd3 {[%clk 1:23:59]}  Nxe4 {[%clk 1:30:16]} 9. Bxe4 {[%clk 1:24:27]}  c5 {[%clk 1:30:35]}
10. Qe2 {[%clk 1:17:59]}  Qa5+ {[%clk 1:17:27]} 11. c3 {[%clk 1:18:15]}  cxd4 {[%clk 1:09:30]} 12. Nxd4 {[%clk 1:17:42]}  Qb6 {[%clk 1:09:36]}
13. Qb5+ {[%clk 1:07:55]}  Qxb5 {[%clk 1:09:27]} 14. Nxb5 {[%clk 1:07:35]}  Rb8 {[%clk 1:09:42]} 15. Nxa7 {[%clk 1:00:41]}  Bd7 {[%clk 1:10:04]}
16. c4 {[%clk 1:00:09]}  Bb4+ {[%clk 1:09:31]} 17. Ke2 {[%clk 1:00:11]}  f5 {[%clk 1:09:33]} 18. Bc2 {[%clk 0:54:52]}  g5 {[%clk 0:56:11]}
19. Rhd1 {[%clk 0:54:39]}  Bc5 {[%clk 0:48:34]} 20. Nb5 {[%clk 0:54:57]}  Bc6 {[%clk 0:48:36]} 21. Kf1 {[%clk 0:53:55]}  Bxb5 {[%clk 0:32:50]}
22. cxb5 {[%clk 0:54:16]}  Ke7 {[%clk 0:33:44]} 23. Rac1 {[%clk 0:47:21]}  Rbc8 {[%clk 0:30:38]} 24. Bb3 {[%clk 0:46:57]}  e5 {[%clk 0:26:27]}
25. Bd5 {[%clk 0:45:55]}  b6 {[%clk 0:26:31]} 26. Bc6 {[%clk 0:43:45]}  Rhd8 {[%clk 0:23:07]} 27. Rxd8 {[%clk 0:40:31]}  Rxd8 {[%clk 0:23:13]}
28. Ke2 {[%clk 0:40:40]}  Ke6 {[%clk 0:16:18]} 29. a3 {[%clk 0:32:16]}  Rd4 {[%clk 0:11:18]} 30. Bb7 {[%clk 0:30:18]}  Rf4 {[%clk 0:07:34]}
31. f3 {[%clk 0:30:30]}  Ra4 {[%clk 0:07:09]} 32. Bc8+ {[%clk 0:28:11]}  Kd6 {[%clk 0:01:34]} 33. Bxf5 {[%clk 0:28:24]}  Bd4 {[%clk 0:00:41]}
34. Rc2 {[%clk 0:24:54]}  h5 {[%clk 0:00:47]} 35. h3 {[%clk 0:25:00]}  h4 {[%clk 0:00:59]} 36. Kd2 {[%clk 0:25:08]}  Ra5 {[%clk 0:01:01]}
37. Bd3 {[%clk 0:25:10]}  Ra4 {[%clk 0:01:00]} 38. Rc6+ {[%clk 0:24:15]}  Ke7 {[%clk 0:01:02]} 39. Kc2 {[%clk 0:24:39]}  Ra8 {[%clk 0:00:36]}
40. Bc4 {[%clk 0:22:08]}  Rd8 {[%clk 0:00:34]} 41. Re6+ {[%clk 0:15:02]}  Kf8 {[%clk 0:25:05]} 42. b4 {[%clk 0:44:59]}  Be3 {[%clk 0:16:55]}
43. Bd3 {[%clk 0:39:30]}  Rc8+ {[%clk 0:16:18]} 44. Kb3 {[%clk 0:39:26]}  Rd8 {[%clk 0:12:15]} 45. Be4 {[%clk 0:37:06]}  Rd2 {[%clk 0:11:57]}
46. a4 {[%clk 0:36:34]}  Bd4 {[%clk 0:05:05]} 47. a5 {[%clk 0:34:47]}  Kf7 {[%clk 0:05:31]} 48. Rxb6 {[%clk 0:30:53]}  Bxb6 {[%clk 0:05:56]}
49. axb6 {[%clk 0:31:18]}  Ke7 {[%clk 0:04:16]} 50. b7 {[%clk 0:31:42]}  Rd8 {[%clk 0:04:37]} 51. b6 {[%clk 0:32:06]}  Kd6 {[%clk 0:03:32]}
52. Kc4 {[%clk 0:32:27]}  Rb8 {[%clk 0:03:51]} 53. Kb5 {[%clk 0:32:52]} 1-0